Cogmind - Beta 14 @@@ ROGUE MODE // 2025.04.28 @ 11:37:01 Player: Sunvar Result: Self-destructed Performance ------------- Evolutions (2) 1000 Regions Visited (7) 1400 Robots Destroyed (100) 500 Value Destroyed (1926) 1926 Prototype IDs (26) 520 Alien Tech Used (0) 0 Bonus (326) 326 TOTAL SCORE: 5672 Bonus ------- High Alert Combat Kills 4 Follower Combat Kills 85 Aligned with FarCom 300 Friendly Fire -63 Cogmind --------- Core Integrity 550/550 Matter 300/300 Energy 280/280 System Corruption 0% Temperature Cool (27) Movement Rolling (150) Ox4 Location -8/Materials Parts ------- > --- POWER (1) -------- Cooled Ion Engine > --- PROPULSION (4) --- Light Treads Improved Treads Armored Wheel Armored Wheel > --- UTILITY (3) ------ Huge Storage Unit Microactuators Improved Medium Armor Plating > --- WEAPON (3) ------- Heavy Assault Rifle Heavy Assault Rifle Longsword +1 > --- INVENTORY (25) --- Cooled Ion Engine Light Treads Light Treads Light Treads Light Treads Improved Cooling System Microactuators Microactuators Microactuators ECM Suite Light Armor Plating Light Armor Plating Medium Armor Plating Improved Light Armor Plating Hacking Suite Hacking Suite Authchip [Armor] High-powered Tractor Beam Heavy Assault Rifle Heavy Assault Rifle Improved Light Cannon Improved Light Cannon Assault Cannon Assault Cannon Missile Launcher Peak State ------------ > --- POWER ------------ Cooled Ion Engine > --- PROPULSION ------- Light Treads Improved Treads Armored Wheel Armored Wheel > --- UTILITY ---------- Huge Storage Unit Microactuators Improved Medium Armor Plating > --- WEAPON ----------- Heavy Assault Rifle Heavy Assault Rifle Longsword +1 > --- INVENTORY -------- Cooled Ion Engine Light Treads Light Treads Light Treads Light Treads Improved Cooling System Microactuators Microactuators Microactuators ECM Suite Light Armor Plating Light Armor Plating Medium Armor Plating Improved Light Armor Plating Hacking Suite Hacking Suite Authchip [Armor] High-powered Tractor Beam Heavy Assault Rifle Heavy Assault Rifle Improved Light Cannon Improved Light Cannon Assault Cannon Assault Cannon Missile Launcher [Rating: 37] Favorites ----------- Power Cooled Ion Engine Engine Cooled Ion Engine Propulsion Light Treads Treads Light Treads Leg Aluminum Leg Wheel Armored Wheel Hover Unit Aerolev Unit Utility Light Armor Plating Device Seismic Detector Storage High-capacity Storage Unit Hackware Hacking Suite Protection Light Armor Plating Weapon Heavy Assault Rifle Energy Gun Small Laser Ballistic Gun Heavy Assault Rifle Ballistic Cannon Improved Light Cannon Launcher Grenade Launcher Impact Weapon Mace Slashing Weapon Longsword +1 Build | -11 -10 -10 -9 -9 -9 -8 -8 ------- Run | Yrd Mat Min Mat Min Exi Min Mat Slots Evolved 4 | . . . 2 . . . 2 Power . | . . . . . . . . Propulsion 2 | . . . . . . . 2 Utility 1 | . . . 1 . . . . Weapon 1 | . . . 1 . . . . Parts Attached 79 | . 11 12 38 4 1 . 13 Power 6 | . 1 2 3 . . . . Engine 6 | . 1 2 3 . . . . Core . | . . . . . . . . Reactor . | . . . . . . . . Propulsion 19 | . 2 3 6 2 . . 6 Treads 12 | . 2 2 4 1 . . 3 Leg . | . . . . . . . . Wheel 6 | . . 1 2 1 . . 2 Hover 1 | . . . . . . . 1 Flight . | . . . . . . . . Utility 20 | . 3 1 9 1 . . 6 Device 9 | . 1 1 3 . . . 4 Storage 3 | . 1 . 1 . . . 1 Processor . | . . . . . . . . Hackware 1 | . . . 1 . . . . Protection 7 | . 1 . 4 1 . . 1 Artifact . | . . . . . . . . Weapon 34 | . 5 6 20 1 1 . 1 Energy Gun 1 | . 1 . . . . . . Energy Cannon . | . . . . . . . . Ballistic Gun 12 | . 3 3 6 . . . . Ballistic Cannon 10 | . . 2 7 . 1 . . Launcher 7 | . 1 1 5 . . . . Special Weapon . | . . . . . . . . Impact Weapon 3 | . . . 2 1 . . . Slashing Weapon 1 | . . . . . . . 1 Piercing Weapon . | . . . . . . . . Special Melee Weapon . | . . . . . . . . Unidentified Prototypes 3 | . . . 2 . . . 1 Parts Lost 15 | . 3 7 4 1 . . . Power 2 | . . 2 . . . . . Propulsion 5 | . 1 3 1 . . . . Utility 3 | . 1 1 . 1 . . . Weapon 5 | . 1 1 3 . . . . Highest Loss Streak 5 | . 3 5 2 1 . . . To Critical Strikes . | . . . . . . . . Average Slot Usage (%) 98 | . 95 98 98 99 100 100 98 Engine 11 | . 14 13 11 11 11 11 9 Treads 14 | . 19 24 11 11 11 11 17 Wheel 9 | . . 2 11 11 11 11 17 Device 8 | . 6 13 9 5 . . 7 Storage 11 | . 14 14 11 11 11 11 9 Hackware 1 | . . . 4 . . . . Protection 8 | . 3 . 7 16 22 22 10 Energy Gun 1 | . 15 1 . . . . . Ballistic Gun 18 | . 12 11 21 22 22 22 18 Ballistic Cannon 7 | . . 13 10 7 5 11 1 Slashing Weapon 1 | . . . . . . . 7 Peak Build Rating 37 | . 10 13 20 20 20 20 37 Average Rating 17 | . 7 10 16 19 20 20 32 On Entrance 13 | 6 6 10 8 18 20 20 20 Naked Turns . | . . . . . . . . Heaviest Build 106 | 11 28 34 63 64 64 64 106 Greatest Support 40 | 20 40 40 20 12 12 12 24 Greatest Overweight (x) 6 | . . 2 6 5 5 5 5 Average Overweight (x) 3 | . . . 4 5 5 5 3 Largest Inventory Capacity 25 | . 15 15 20 20 20 20 25 Average Capacity 17 | . 10 15 18 20 20 20 21 Most Carried 25 | . 12 15 20 20 20 20 25 Average Carried 16 | . 7 12 16 19 19 20 20 Final Capacity 25 | 8 15 15 20 20 20 20 25 Final Carried 25 | 6 12 10 20 20 20 20 25 Class Distribution -------------------- 42% | Mutant 28% | Tank 12% | Scavenger-Tank 6% | Scavenger-Gunner 5% | Gunner 4% | Scavenger-Mutant Dominant Class ---------------- Mutant | -10/Materials Mutant | -10/Mines Scavenger-Tank | -9/Materials Tank | -9/Mines Tank | -9/Exiles Tank | -8/Mines Mutant | -8/Materials Resources | -11 -10 -10 -9 -9 -9 -8 -8 ----------- Run | Yrd Mat Min Mat Min Exi Min Mat Matter Collected 2430 | 200 129 479 1291 145 . 50 136 Remotely . | . . . . . . . . Salvage Created 2788 | . 475 372 1491 146 . 80 224 Parts 206 | . 44 17 107 12 . 5 21 Haulers Intercepted 9 | . 1 . 6 . . . 2 Recyclers Shooed 3 | . 2 . 1 . . . . Parts Field Recycled . | . . . . . . . . Retrieved Matter . | . . . . . . . . Parts Self-Destructed . | . . . . . . . . Prevented . | . . . . . . . . Kills | -11 -10 -10 -9 -9 -9 -8 -8 ------- Run | Yrd Mat Min Mat Min Exi Min Mat Combat Hostiles Destroyed 78 | . 14 19 34 8 . 1 2 Melee 2 | . . . . . . . 2 Guns 38 | . 14 1 17 6 . . . Cannons 16 | . . 7 6 2 . 1 . AOE 22 | . . 11 11 . . . . Classes Destroyed 13 | . 5 4 4 . . . . Worker 5 | . 1 . 4 . . . . Builder 2 | . . 1 . 1 . . . Tunneler 2 | . . . 2 . . . . Hauler 9 | . 1 . 6 . . . 2 Recycler 7 | . . 3 3 . . 1 . Operator 3 | . . . 3 . . . . Watcher 6 | . 1 . 4 . . . 1 Swarmer 33 | . 9 3 14 6 . 1 . Grunt 23 | . 5 4 13 1 . . . Duelist 1 | . . . 1 . . . . Sentry 8 | . . . 6 . . . 2 Demolisher 1 | . . 1 . . . . . Assembled 12 | . . 11 . 1 . . . Best Kill Streak 11 | . 4 10 11 4 . 1 1 Combat Bots Only 10 | . 4 10 5 4 . 1 1 Max Kills in Single Turn 4 | . 1 3 4 1 . 1 1 Gunslinging . | . . . . . . . . Exploded 3 | . . 3 3 . . . . Melee 1 | . . . . . . . 1 Uniques/NPCs Destroyed . | . . . . . . . . Combat | -11 -10 -10 -9 -9 -9 -8 -8 -------- Run | Yrd Mat Min Mat Min Exi Min Mat Hostile Shots Fired 308 | . 61 71 135 22 . . 19 Missed 90 | . 21 15 44 4 . . 6 Damage Taken 2895 | . 571 922 1054 161 . . 187 Core 394 | . 56 175 147 16 . . . Absorbed by Shields . | . . . . . . . . Regen/Repaired (Parts) 304 | . . . 208 . . . 96 Core Remaining (%) 55 | 100 . 7 . . . 59 . Volleys Fired 226 | . 53 49 107 12 . 4 1 Largest 3 | . 2 2 3 3 . 3 2 Hottest 92 | . 80 83 92 85 . 85 46 Shots Fired 526 | . 105 86 290 31 . 12 2 Gun 349 | . 104 26 185 24 . 8 2 Cannon 155 | . . 48 96 7 . 4 . Launcher 22 | . 1 12 9 . . . . Special . | . . . . . . . . Kinetic 446 | . 46 74 281 31 . 12 2 Thermal 52 | . 52 . . . . . . Explosive 22 | . 1 12 9 . . . . Electromagnetic 6 | . 6 . . . . . . Robot Hit Streak 36 | . 8 8 36 7 . 2 . Robot Miss Streak 8 | . 8 4 6 2 . 3 5 Penetration Max . | . . . . . . . . Secondary Targets 1 | . 1 . . . . . . Max Gunslinging Chain 1 | . 1 . . . . . . Shots Hit Robots 301 | . 61 46 155 18 . 3 18 Core Hits 166 | . 29 43 79 9 . 2 4 Critical Kills 2 | . . 1 1 . . . . Critical Parts Destroyed 2 | . . . 2 . . . . Critical Strikes 7 | . . 2 4 . . . 1 Destroy 4 | . . 1 3 . . . . Blast 2 | . . 1 1 . . . . Sever 1 | . . . . . . . 1 Melee Attacks 47 | . . . 4 10 . . 33 Impact 14 | . . . 4 10 . . . Slashing 33 | . . . . . . . 33 Piercing . | . . . . . . . . Sneak Attacks 2 | . . . . . . . 2 Combat Hostiles . | . . . . . . . . Follow-up Attacks . | . . . . . . . . Damage Inflicted 6667 | . 634 1433 3326 293 . 53 928 Guns 2629 | . 626 172 1548 251 . 32 . Cannons 1417 | . . 443 911 42 . 21 . Explosions 1654 | . . 787 867 . . . . Melee 928 | . . . . . . . 928 Ramming 39 | . 8 31 . . . . . Kinetic 3615 | . 195 615 2459 293 . 53 . Thermal 384 | . 384 . . . . . . Explosive 1654 | . . 787 867 . . . . Electromagnetic 47 | . 47 . . . . . . Impact . | . . . . . . . . Slashing 928 | . . . . . . . 928 Piercing . | . . . . . . . . Highest Corruption . | . . . . . . . . Average Corruption . | . . . . . . . . Corruption Purged . | . . . . . . . . Corruption Blocked . | . . . . . . . . Overload Shots . | . . . . . . . . Overflow Damage 200 | . 41 14 36 . . . 109 Projectiles 27 | . . . 27 . . . . Explosions 64 | . 41 14 9 . . . . Melee 109 | . . . . . . . 109 Knockbacks 12 | . . 3 9 . . . . Impact . | . . . . . . . . Kinetic 12 | . . 3 9 . . . . Secondary . | . . . . . . . . Self-Inflicted Damage 263 | . 217 18 28 . . . . Shots 7 | . 3 2 2 . . . . Rammed 5 | . 1 4 . . . . . Targets Rammed 6 | . 2 4 . . . . . Kicked . | . . . . . . . . Crushed 1 | . 1 . . . . . . Highest Temperature 161 | . 156 20 161 50 . 27 . Average Temperature 37 | . 53 4 35 22 . 15 . Received Heat Transfer 712 | . 63 220 321 18 . . 90 Siege Activations . | . . . . . . . . Robots Corrupted . | . . . . . . . . Combat Hostiles . | . . . . . . . . Parts Fried . | . . . . . . . . Impact Corruptions . | . . . . . . . . Robots Melted . | . . . . . . . . Combat Hostiles . | . . . . . . . . Parts Melted 1 | . 1 . . . . . . Heat Transferred 850 | . 850 . . . . . . Parts Sabotaged . | . . . . . . . . Parts Stolen . | . . . . . . . . Parts Stripped . | . . . . . . . . Power Chain Reactions . | . . . . . . . . Alert | -11 -10 -10 -9 -9 -9 -8 -8 ------- Run | Yrd Mat Min Mat Min Exi Min Mat Peak Influence 485 | . 338 265 485 246 . 101 97 Initial 181 | . . 63 25 181 . . 39 Average 132 | . 188 87 181 123 . 97 37 Maximum Alert Level 2 | . 1 1 2 1 . . . Low Security (%) 74 | . 44 92 63 74 . 100 100 Level 1 19 | . 55 7 22 25 . . . Level 2 5 | . . . 14 . . . . Level 3 . | . . . . . . . . Level 4 . | . . . . . . . . Level 5 . | . . . . . . . . High Security . | . . . . . . . . Max Security . | . . . . . . . . Squads Dispatched 7 | . 3 . 3 . . . 1 Investigation 2 | . 2 . . . . . . Extermination . | . . . . . . . . Reinforcement 5 | . 1 . 3 . . . 1 Assault . | . . . . . . . . Garrison . | . . . . . . . . Intercept . | . . . . . . . . Searches Triggered . | . . . . . . . . Construction Impeded . | . . . . . . . . Haulers Reinforced . | . . . . . . . . Active Scanning Responses . | . . . . . . . . Cargo Convoy Interrupts . | . . . . . . . . Stealth | -11 -10 -10 -9 -9 -9 -8 -8 --------- Run | Yrd Mat Min Mat Min Exi Min Mat Distress Signals 9 | . 1 2 4 . . . 2 Communications Jammed . | . . . . . . . . Distress Signals . | . . . . . . . . Times Spotted 141 | . 24 29 56 14 . 2 16 Peak Tracking Total 11 | . 5 11 5 4 . 2 7 Tactical Retreats 19 | . 1 4 9 1 . . 4 Traps | -11 -10 -10 -9 -9 -9 -8 -8 ------- Run | Yrd Mat Min Mat Min Exi Min Mat Traps Triggered . | . . . . . . . . Indirectly . | . . . . . . . . Trap Hack Attempts . | . . . . . . . . Triggered . | . . . . . . . . Disarmed . | . . . . . . . . Reprogrammed . | . . . . . . . . Reused . | . . . . . . . . Traps Extracted . | . . . . . . . . Installed . | . . . . . . . . Triggered . | . . . . . . . . Machines | -11 -10 -10 -9 -9 -9 -8 -8 ---------- Run | Yrd Mat Min Mat Min Exi Min Mat Machines Disabled 6 | . 4 . 2 . . . . Max in Single Turn 3 | . 3 . 1 . . . . Machines Repaired . | . . . . . . . . Machines Dismantled . | . . . . . . . . Machines Sabotaged . | . . . . . . . . Overloaded Fab Kills . | . . . . . . . . Hacking | -11 -10 -10 -9 -9 -9 -8 -8 --------- Run | Yrd Mat Min Mat Min Exi Min Mat Machines Accessed 22 | . 6 . 10 2 2 . 2 Terminals 16 | . 6 . 8 1 . . 1 Fabricators . | . . . . . . . . Repair Stations 3 | . . . 2 . . . 1 Recycling Units . | . . . . . . . . Scanalyzers . | . . . . . . . . Garrison Access . | . . . . . . . . Total Hacks 50 | . 15 . 24 3 2 . 6 Successful 21 | . 2 . 12 1 2 . 4 Failed 29 | . 13 . 12 2 . . 2 Catastrophic 7 | . 4 . 2 1 . . . Database Lockouts . | . . . . . . . . Manual 27 | . 8 . 14 2 1 . 2 Terminals 39 | . 15 . 20 2 . . 2 Fabricators . | . . . . . . . . Repair Stations 8 | . . . 4 . . . 4 Recycling Units . | . . . . . . . . Scanalyzers . | . . . . . . . . Garrison Access . | . . . . . . . . Terminal Hacks 9 | . 1 . 5 1 2 . . Record 1 | . . . . . 1 . . Robot Analysis 1 | . . . 1 . . . . Open Door 1 | . . . . 1 . . . Unreport Threat 2 | . . . 2 . . . . Recall Investigation 1 | . 1 . . . . . . Hauler Manifests 2 | . . . 2 . . . . Derelict Proto ID Bank 1 | . . . . . 1 . . Fabricator Hacks . | . . . . . . . . Repair Station Hacks 8 | . . . 4 . . . 4 Scan Component 4 | . . . 2 . . . 2 Repair 4 | . . . 2 . . . 2 Recycling Unit Hacks . | . . . . . . . . Scanalyzer . | . . . . . . . . Garrison Access Hacks . | . . . . . . . . Unauthorized Hacks 4 | . 1 . 3 . . . . Terminals 4 | . 1 . 3 . . . . Botnet 3 | . 1 . 2 . . . . Operators 1 | . . . 1 . . . . Fabricators . | . . . . . . . . Repair Stations . | . . . . . . . . Recycling Units . | . . . . . . . . Scanalyzers . | . . . . . . . . Garrison Access . | . . . . . . . . Data Cores Recovered 1 | . . . 1 . . . . Used . | . . . . . . . . Hacking Detections 19 | . 6 . 10 1 . . 2 Full Trace Events 2 | . 2 . . . . . . Feedback Events . | . . . . . . . . Feedback Blocked . | . . . . . . . . Robot Schematics Acquired . | . . . . . . . . Robots Built . | . . . . . . . . Authchips . | . . . . . . . . Time . | . . . . . . . . Total Robot Build Rating . | . . . . . . . . Part Schematics Acquired . | . . . . . . . . Parts Built . | . . . . . . . . Authchips . | . . . . . . . . Time . | . . . . . . . . Total Part Build Rating . | . . . . . . . . Parts Repaired 4 | . . . 2 . . . 2 Time 128 | . . . 64 . . . 64 Parts Recycled . | . . . . . . . . Recycled Matter . | . . . . . . . . Retrieved Matter . | . . . . . . . . Retrieved Components . | . . . . . . . . Parts Scanalyzed . | . . . . . . . . Part Schematics Acquired . | . . . . . . . . Parts Damaged . | . . . . . . . . Bothacking | -11 -10 -10 -9 -9 -9 -8 -8 ------------ Run | Yrd Mat Min Mat Min Exi Min Mat Used RIF Installer . | . . . . . . . . Robots Hacked . | . . . . . . . . Non-combat . | . . . . . . . . Combat . | . . . . . . . . Robot Hacks Applied . | . . . . . . . . Relay Couplers Released . | . . . . . . . . Fabnet Peak Effective % . | . . . . . . . . Robots Rewired . | . . . . . . . . Allies Hacked . | . . . . . . . . Hacks Repelled . | . . . . . . . . Allies | -11 -10 -10 -9 -9 -9 -8 -8 -------- Run | Yrd Mat Min Mat Min Exi Min Mat Total Allies 6 | . . 2 . 4 . . . Largest Group 4 | . . 2 . 4 3 3 3 Highest-Rated Group 63 | . . 46 . 63 40 40 40 Highest-Rated Ally 31 | . . 31 . 31 16 16 16 Total Orders 1 | . . . . . . . 1 ROAM 1 | . . . . . . . 1 Ally Attacks 35 | . . 6 . 6 . 5 18 Total Damage 385 | . . 64 . 102 . 39 180 Kills 9 | . . 1 . 3 . 2 3 Allies Corrupted . | . . . . . . . . Allies Melted 1 | . . . . . . . 1 Intel | -11 -10 -10 -9 -9 -9 -8 -8 ------- Run | Yrd Mat Min Mat Min Exi Min Mat Robot Analysis Total 1 | . . . 1 . . . . Derelict Logs Recovered 2 | . . 1 . 1 . . . Drone Launches . | . . . . . . . . Drone Recoveries . | . . . . . . . . Exploration | -11 -10 -10 -9 -9 -9 -8 -8 ------------- Run | Yrd Mat Min Mat Min Exi Min Mat Turns Passed 7814 | . 853 1101 2860 1063 367 306 1264 Spaces Moved 4004 | 1 456 591 1351 591 219 178 617 Core . | . . . . . . . . Treads 738 | . 293 390 55 . . . . Legs 164 | 1 163 . . . . . . Wheels 3102 | . . 201 1296 591 219 178 617 Hover . | . . . . . . . . Flight . | . . . . . . . . Fastest Speed 110 | 120 120 110 125 165 165 165 120 Average Speed 152 | 120 145 145 156 165 165 165 135 Slowest Speed 240 | 120 160 240 240 165 165 165 165 Overloaded Moves . | . . . . . . . . Propulsion Burnouts . | . . . . . . . . Robots Hopped . | . . . . . . . . Cave-ins Triggered . | . . . . . . . . Exploration Rate (%) 63 | 2 87 81 89 99 60 40 50 Regions Visited 7 Branch Regions 4 Pre-discovered Areas 2 | . . 1 . . 1 . . Known Exits Taken . | . . . . . . . . Unknown Exits Taken 7 | 1 1 1 1 1 1 1 . Scrap Searched 3 | . . 1 . 2 . . . Spaces Dug 26 | . . . 14 . . . 12 Terrain Destroyed 202 | . 57 59 74 . . . 12 Melee 16 | . . . 4 . . . 12 Projectile 24 | . . 12 12 . . . . AOE 162 | . 57 47 58 . . . . Terrain Rammed . | . . . . . . . . Walls Destroyed . | . . . . . . . . Machines Disabled . | . . . . . . . . Actions | -11 -10 -10 -9 -9 -9 -8 -8 --------- Run | Yrd Mat Min Mat Min Exi Min Mat Total 5258 | . 546 749 1896 636 225 181 1025 Wait 792 | . 13 89 335 15 4 . 336 Move 3997 | . 455 590 1350 590 218 177 617 Hop . | . . . . . . . . Pick Up 61 | . 8 5 31 3 1 . 13 Fast Attach 14 | . 3 . 7 . . . 4 Attach 18 | . 2 7 5 1 . . 3 Detach 7 | . 1 . 3 . . . 3 Swap 47 | . 6 5 26 3 1 . 6 Drop 43 | . 3 . 28 2 1 . 9 Fire 226 | . 53 49 107 12 . 4 1 Melee 47 | . . . 4 10 . . 33 Ram 1 | . . 1 . . . . . Kick . | . . . . . . . . Crush 5 | . 2 3 . . . . . Escape Stasis . | . . . . . . . . Rewire . | . . . . . . . . Trap . | . . . . . . . . Miscellaneous . | . . . . . . . . Route ------- -11/Scrapyard -10/Materials (discovered 4 exits: *Mat x2 / [*Min x2]) -10/Mines -9/Materials (discovered 4 exits: *Mat x3 / *Min) -9/Mines (discovered 4 exits: *Mat x2 / *Exi / [*Zio]) -9/Exiles -8/Mines -8/Materials (discovered 1 exit: [*Fac]) History --------- Turn | Location | Event 1 | -11/Scrapyard | Discovered new exit (range 0) 1 | -11/Scrapyard | Entered Materials 72 | -10/Materials | Discovered new exit (range 6) 196 | -10/Materials | Discovered new exit (range 15) 291 | -10/Materials | Lost 3 parts (1n1u1w) 303 | -10/Materials | Build established: Mutant 313 | -10/Materials | Discovered new exit (range 5) 847 | -10/Materials | Discovered new exit (range 5) 854 | -10/Materials | Entered Mines 938 | -10/Mines | Learned location of Zion (-7) 1026 | -10/Mines | A weapon hastily lodged in a ceiling crevice suddenly fell to the ground 1122 | -10/Mines | Discovered new exit (range 8) 1513 | -10/Mines | Assembled infested the area 1573 | -10/Mines | Destroyed 10 combat bots 1709 | -10/Mines | Core integrity fell below 50% 1720 | -10/Mines | Core integrity fell below 20% 1746 | -10/Mines | Lost 5 parts (1p2n1u1w) 1955 | -10/Mines | Entered Materials 1955 | -9/Materials | Evolved 2 slots: Utility x1, Weapon x1 2242 | -9/Materials | Build established: Scavenger-Gunner 2715 | -9/Materials | Discovered new exit (range 13) 2873 | -9/Materials | Repaired Imp. Light Cannon 3354 | -9/Materials | Discovered new exit (range 3) 3367 | -9/Materials | Build established: Tank 3794 | -9/Materials | Discovered new exit (range 3) 3843 | -9/Materials | Build established: Scavenger-Tank 4080 | -9/Materials | Repaired Imp. Light Cannon 4601 | -9/Materials | Discovered new exit (range 8) 4770 | -9/Materials | Build established: Tank 4815 | -9/Materials | Entered Mines 4837 | -9/Mines | Learned 2 Materials zone layouts 4966 | -9/Mines | Found DCF Scrap (15 items) 5076 | -9/Mines | A Derelict revealed a hidden shortcut to a safe place 5239 | -9/Mines | Received a Rocket Launcher from a helpful Derelict 5465 | -9/Mines | Discovered new exit (range 7) 5492 | -9/Mines | Discovered new exit (range 7) 5495 | -9/Mines | Received a Mining Laser from a helpful Derelict 5508 | -9/Mines | Excavation squad dispatched 5508 | -9/Mines | A large section of the Mines collapsed 5617 | -9/Mines | Met a Derelict who couldn't figure out how to use a Trap Extractor 5670 | -9/Mines | Assisted by bots powering up and referring to "LRC-V3" 5819 | -9/Mines | Build established: Mutant 5865 | -9/Mines | Deemed a non-threat by the Exiles lab entrance 5865 | -9/Mines | Discovered new exit (range 5) 5878 | -9/Mines | Entered Exiles 5878 | -9/Exiles | Accompanied by 3 allies 5918 | -9/Exiles | Met 8R-AWN 5946 | -9/Exiles | Met EX-HEX 5992 | -9/Exiles | Met EX-BIN 6012 | -9/Exiles | Aligned with FarCom system 6014 | -9/Exiles | Given EX-Vault access code 6052 | -9/Exiles | Opened EX-Vault 6065 | -9/Exiles | Found Longsword +1 6103 | -9/Exiles | Warned to stay clear of 0b10 Research branches 6122 | -9/Exiles | Exiles lab attacked by MAIN.C 6228 | -9/Exiles | Discovered new exit (range 10) 6245 | -9/Exiles | Left Exiles lab with Longsword +1 6245 | -9/Exiles | Entered Mines 6245 | -8/Mines | Accompanied by 3 allies 6347 | -8/Mines | Build established: Tank 6386 | -8/Mines | Discovered new exit (range 13) 6551 | -8/Mines | Entered Materials 6551 | -8/Materials | Accompanied by 3 allies 6551 | -8/Materials | Evolved 2 slots: Propulsion x2 6628 | -8/Materials | Repaired Arm. Wheel 6661 | -8/Materials | Repaired Imp. Treads 7049 | -8/Materials | Build established: Mutant 7061 | -8/Materials | Discovered new exit (range 11) 7815 | -8/Materials | Self-destructed Last Messages --------------- 07582_ Y-45 Defender Hvy. Assault Rifle severed. 07586_ Y-45 Defender destroyed. 07587_ Acquired 50 matter. 07592_ Dropped Lgt. Treads. 07592_ Acquired Lgt. Treads. 07598_ Dropped Lgt. Armor Plating. 07599_ Acquired Hpw. Tractor Beam. 07684_ Destroyed Imp. Sensor Array. 07685_ Destroyed Imp. Hover Unit. 07694_ Y-45 Defender destroyed. 07739_ Sneak attack on A-02 Transporter. 07744_ Destroyed Wheel. 07757_ U-05 Engineer builds a Door. 07776_ Destroyed Imp. Hover Unit. 07776_ W-25 Informer destroyed. 07797_ Destroyed Lgt. Treads. 07806_ R-06 Scavenger collects Hvy. Assault Rifle. 07810_ A-02 Transporter destroyed. 07815_ Critical hit (Burn: +37). 07815_ K-01 Serf collects debris. Map ----- +----------------------------------------------------+ | ?????????????????????????????# # "T" ]] | | ?????????????????????????????# "S # | | ?????????##########??????????# """ # | | ?????????# #??????????# "" # ###+#### | | ?????????# """ #??????????# # # | | ?????????# """ #?????############### # = | | ?????????# """ #?????# #?????## # | | ?????????# #?????# """ #??????# # | | ?????????# """ #?????# """ #??????# # | | ?????????# """ #?????# """ #??????# # "Y" | | ?????????# """ #?????# #??????# # """ | | ?????????# #?????#* #??????# # | | ?????????#####+#############+########## ######## | | ??????????# g w | | ??????????# < g | | ??????????# #### | | ??????????###########+######+######+####### ^# | | ??????????????????# # # ## # | | ??????????????????# # # ## # | | ??????????????????# """# [[[ # ## + | | ??????????????????# """# [[[ # """ ## # | | ??????????????????# """# [[[ [#[ """ " #! | | ??????????????????# # # """ ## #### | | ??????????????????#+#+########### ! """ ## #??? | | ?????????# ### g########### """ ## #??? | | ?????????# !]k]*@ + ] ## #??? | | ?????????+ !]! ########### #### | | ?????????# Y ! t %! !%! *! | | ?????????# #################### * | | ?????????# Y ########??????????##= # ! | | ??????????## k????????????????######* # | | ???????????#??????????????????# +[= # | | ??????????????????????????????# ####[ # ^ | | ??????????????????????????????# #?# + | | ??????????????????????????????# #?## # | | ???????????????????????????####+########### | | ???????????????????????????# #????# | | ???????????????????????????# #????## ##### | | ???????????????????????????# #??####+##### | | ???????????????????????????# #???????????? | | ???????????????????????????# #???????????? | | ???????????????????????????# #???????????? | | ???????????????????????????# #???????????? | | ???????????????????????????# #???????????? | | ???????????????????????????#####+#####???????????? | | ?????????????????????????????# #############?? | | ?????????????????????????????# ! ? | | ?????????????????????????????# ? | | ?????????????????????????????# ? | | ?????????????????????????????# ####### ###?? | +----------------------------------------------------+ Best States ------------- Heat Dissipation 58 Energy Generation 14 Energy Capacity 280 Matter Stores 300 Matter Capacity 300 Sight Range 16 Terrain Scan Density 10 ECM Strength 1 Armor Coverage 300 Melee Speed Boost 20 Evasion (%) 55 Recoil Reduction 2 Offensive Hacking 10 Authchip Count 1 Item Schematics ----------------- None Robot Schematics ------------------ None Fabricated ------------ Nothing Alien Tech Used ----------------- None Achievements -------------- None Challenges ------------ None Game ------ Seed BattleRemoteMace Manual? 0 Play Time 01:02:19 Cumulative 129.6 hours Start 2025.04.26 @ 01:41:17 End 2025.04.28 @ 11:37:01 Sessions 5 Manual Loads 0 Difficulty Rogue Special Mode None Game No. 90 Rogue 90 Adventurer 0 Explorer 0 Win Type - Total 5 Types 4/0/1/0/0/0/0/0/0 Lore% 50 Gallery% 60 Achievement% 51 Wizard Run 0 Options --------- Layout 0 ASCII 0 Keyboard 1 Movement Numpad Keybinds 0 Fullscreen 1 Font 36/Proggy Map View 76x50 Zoom Use 0% Tactical HUD 1 Map Filters NONE Filters NONE Steam 1 RUN: b9853d93-e9a5-41a8-acba-be9401ef0384